[Event "*** Titled Tuesday Blitz"]
[Site "Chess.com"]
[Date "2018.12.04"]
[Round "5"]
[White "KenanGarayev"]
[Black "VerdeNotte"]
[Result "1/2-1/2"]
[WhiteElo "2772"]
[BlackElo "2849"]
[TimeControl "180+2"]
[EndTime "14:08:21 PST"]
[Termination "Game drawn - insufficient material"]

1. e4 {[%clk 0:03:01.9]} 1... e5 {[%clk 0:03:00.3]} 2. Nf3 {[%clk 0:03:02.9]}
2... Nc6 {[%clk 0:03:01.8]} 3. Bc4 {[%clk 0:03:02.1]} 3... Nf6 {[%clk
0:03:01.1]} 4. d3 {[%clk 0:02:59.7]} 4... h6 {[%clk 0:03:01.9]} 5. O-O {[%clk
0:02:58.8]} 5... Bc5 {[%clk 0:03:02.1]} 6. c3 {[%clk 0:02:57.6]} 6... d6 {[%clk
0:03:02.8]} 7. Nbd2 {[%clk 0:02:53.9]} 7... a6 {[%clk 0:02:56.9]} 8. h3 {[%clk
0:02:52.9]} 8... Ba7 {[%clk 0:02:47.9]} 9. Bb3 {[%clk 0:02:53.5]} 9... g5 {[%clk
0:02:48.6]} 10. d4 {[%clk 0:02:46.1]} 10... g4 {[%clk 0:02:46.6]} 11. hxg4
{[%clk 0:02:44.6]} 11... Bxg4 {[%clk 0:02:46.4]} 12. Bd5 {[%clk 0:02:38.8]}
12... exd4 {[%clk 0:02:12.6]} 13. Bxc6+ {[%clk 0:02:32.2]} 13... bxc6 {[%clk
0:02:14.5]} 14. cxd4 {[%clk 0:02:34.1]} 14... Rg8 {[%clk 0:02:14.2]} 15. Qc2
{[%clk 0:02:26]} 15... Qd7 {[%clk 0:01:58.2]} 16. e5 {[%clk 0:02:11.4]} 16...
Bf5 {[%clk 0:01:42.5]} 17. Qc4 {[%clk 0:02:06.4]} 17... d5 {[%clk 0:01:32.2]}
18. Qa4 {[%clk 0:01:57.9]} 18... Ne4 {[%clk 0:01:31]} 19. Re1 {[%clk 0:01:54.9]}
19... Nxd2 {[%clk 0:01:18.5]} 20. Bxd2 {[%clk 0:01:56.8]} 20... Be4 {[%clk
0:01:19.7]} 21. e6 {[%clk 0:01:36.9]} 21... fxe6 {[%clk 0:01:10.2]} 22. Ne5
{[%clk 0:01:32.9]} 22... Qd6 {[%clk 0:00:32.5]} 23. Bb4 {[%clk 0:01:22.1]} 23...
Rxg2+ {[%clk 0:00:31.6]} 24. Kf1 {[%clk 0:01:21.6]} 24... Rxf2+ {[%clk
0:00:12.4]} 25. Kxf2 {[%clk 0:01:20]} 25... Bxd4+ {[%clk 0:00:12.3]} 26. Ke2
{[%clk 0:01:16.9]} 26... Qxe5 {[%clk 0:00:13.5]} 27. Qxc6+ {[%clk 0:01:18.8]}
27... Kf7 {[%clk 0:00:13.3]} 28. Kd1 {[%clk 0:01:13.9]} 28... Bf3+ {[%clk
0:00:10.8]} 29. Kd2 {[%clk 0:01:12.6]} 29... Qf4+ {[%clk 0:00:08.7]} 30. Kc2
{[%clk 0:01:11.3]} 30... Qf5+ {[%clk 0:00:08.7]} 31. Kb3 {[%clk 0:01:09.4]}
31... Qd3+ {[%clk 0:00:09.8]} 32. Bc3 {[%clk 0:01:02.5]} 32... Rb8+ {[%clk
0:00:09.7]} 33. Ka3 {[%clk 0:00:58.8]} 33... Bxc3 {[%clk 0:00:07.4]} 34. Qxc7+
{[%clk 0:00:53.2]} 34... Kf6 {[%clk 0:00:04.6]} 35. Qf4+ {[%clk 0:00:52.2]}
35... Qf5 {[%clk 0:00:04.3]} 36. Qxb8 {[%clk 0:00:49.1]} 36... Bxe1 {[%clk
0:00:04.7]} 37. Rxe1 {[%clk 0:00:49.4]} 37... Be4 {[%clk 0:00:04.7]} 38. b3
{[%clk 0:00:47.8]} 38... Kg7 {[%clk 0:00:03.5]} 39. Qg3+ {[%clk 0:00:43.7]}
39... Qg5 {[%clk 0:00:04.3]} 40. Qc7+ {[%clk 0:00:44.8]} 40... Kg6 {[%clk
0:00:05.2]} 41. Qd6 {[%clk 0:00:44]} 41... Bf5 {[%clk 0:00:06.5]} 42. Qxa6
{[%clk 0:00:43.2]} 42... Qd2 {[%clk 0:00:07.3]} 43. Rg1+ {[%clk 0:00:40.7]}
43... Kf6 {[%clk 0:00:08.8]} 44. Qa8 {[%clk 0:00:40]} 44... Ke5 {[%clk
0:00:05.8]} 45. Qb8+ {[%clk 0:00:37.1]} 45... Ke4 {[%clk 0:00:07.1]} 46. Qb4+
{[%clk 0:00:34.6]} 46... Qxb4+ {[%clk 0:00:07.6]} 47. Kxb4 {[%clk 0:00:36.5]}
47... d4 {[%clk 0:00:09.2]} 48. a4 {[%clk 0:00:35.9]} 48... Kd3 {[%clk 0:00:09]}
49. a5 {[%clk 0:00:31.7]} 49... Be4 {[%clk 0:00:08.9]} 50. Re1 {[%clk
0:00:27.1]} 50... Bd5 {[%clk 0:00:07.6]} 51. a6 {[%clk 0:00:28.5]} 51... Kd2
{[%clk 0:00:08.6]} 52. Re5 {[%clk 0:00:27.6]} 52... d3 {[%clk 0:00:09.9]} 53.
Rxd5 {[%clk 0:00:25.9]} 53... exd5 {[%clk 0:00:11.5]} 54. a7 {[%clk 0:00:27.6]}
54... Ke2 {[%clk 0:00:08.7]} 55. a8=Q {[%clk 0:00:28.7]} 55... d2 {[%clk
0:00:10.6]} 56. Qxd5 {[%clk 0:00:15.2]} 56... d1=Q {[%clk 0:00:11.2]} 57. Qxd1+
{[%clk 0:00:16.7]} 57... Kxd1 {[%clk 0:00:13.1]} 58. Ka3 {[%clk 0:00:17.5]}
58... h5 {[%clk 0:00:12.4]} 59. b4 {[%clk 0:00:19.4]} 59... h4 {[%clk
0:00:13.8]} 60. b5 {[%clk 0:00:21.3]} 60... h3 {[%clk 0:00:15.2]} 61. b6 {[%clk
0:00:22.7]} 61... h2 {[%clk 0:00:16.7]} 62. b7 {[%clk 0:00:23.9]} 62... h1=Q
{[%clk 0:00:18.1]} 63. b8=Q {[%clk 0:00:24.8]} 63... Qf3+ {[%clk 0:00:19.3]} 64.
Qb3+ {[%clk 0:00:23.8]} 64... Qxb3+ {[%clk 0:00:20.3]} 65. Kxb3 {[%clk
0:00:25.2]} 1/2-1/2

[Event "*** Titled Tuesday Blitz"]
[Site "Chess.com"]
[Date "2018.12.04"]
[Round "5"]
[White "abubakrtagelsir"]
[Black "TheRigos"]
[Result "0-1"]
[WhiteElo "2299"]
[BlackElo "2420"]
[TimeControl "180+2"]
[EndTime "14:08:33 PST"]
[Termination "TheRigos won by resignation"]

1. e4 {[%clk 0:02:56.1]} 1... c5 {[%clk 0:03:01.2]} 2. Nc3 {[%clk 0:02:56.4]}
2... a6 {[%clk 0:03:02.3]} 3. g3 {[%clk 0:02:51.7]} 3... b5 {[%clk 0:03:03.4]}
4. Bg2 {[%clk 0:02:47.9]} 4... Bb7 {[%clk 0:03:04.7]} 5. d3 {[%clk 0:02:47.7]}
5... e6 {[%clk 0:03:04.3]} 6. Nf3 {[%clk 0:02:44.7]} 6... d5 {[%clk 0:02:54.6]}
7. exd5 {[%clk 0:02:45.1]} 7... exd5 {[%clk 0:02:55]} 8. O-O {[%clk 0:02:46]}
8... Be7 {[%clk 0:02:50.7]} 9. d4 {[%clk 0:02:45.7]} 9... c4 {[%clk 0:02:39.2]}
10. Re1 {[%clk 0:02:27.5]} 10... Nf6 {[%clk 0:02:40.4]} 11. Bg5 {[%clk
0:02:24.9]} 11... O-O {[%clk 0:02:40.5]} 12. Nh4 {[%clk 0:02:23.2]} 12... h6
{[%clk 0:02:32.8]} 13. Nf5 {[%clk 0:02:11.9]} 13... Bb4 {[%clk 0:02:02.5]} 14.
Bxf6 {[%clk 0:01:15.8]} 14... Qxf6 {[%clk 0:01:56.6]} 15. g4 {[%clk 0:01:07.1]}
15... Rd8 {[%clk 0:01:48.7]} 16. Qf3 {[%clk 0:01:02.6]} 16... Nd7 {[%clk
0:01:39.5]} 17. a3 {[%clk 0:01:01.2]} 17... Bxc3 {[%clk 0:01:38.7]} 18. bxc3
{[%clk 0:01:00.6]} 18... Re8 {[%clk 0:01:32.2]} 19. Qg3 {[%clk 0:00:59.4]} 19...
Nf8 {[%clk 0:01:08.6]} 20. Rxe8 {[%clk 0:00:52.1]} 20... Rxe8 {[%clk 0:01:09.3]}
21. Nd6 {[%clk 0:00:53]} 21... Re7 {[%clk 0:01:03.6]} 22. Nxb7 {[%clk
0:00:52.4]} 22... Rxb7 {[%clk 0:01:05.5]} 23. Bxd5 {[%clk 0:00:53.3]} 23... Re7
{[%clk 0:01:06.7]} 24. Bg2 {[%clk 0:00:51.2]} 24... Ng6 {[%clk 0:01:07.8]} 25.
Qb8+ {[%clk 0:00:35.6]} 25... Kh7 {[%clk 0:01:07.4]} 26. Qa8 {[%clk 0:00:29.5]}
26... Re2 {[%clk 0:00:41.9]} 27. Qf3 {[%clk 0:00:18.1]} 27... Nf4 {[%clk
0:00:42.8]} 28. Bf1 {[%clk 0:00:15.5]} 28... Rxc2 {[%clk 0:00:23.6]} 29. Qe4+
{[%clk 0:00:15.7]} 29... Qg6 {[%clk 0:00:25.1]} 30. Qxg6+ {[%clk 0:00:16.6]}
30... Kxg6 {[%clk 0:00:26.5]} 31. a4 {[%clk 0:00:17.4]} 31... Rxc3 {[%clk
0:00:26.6]} 32. axb5 {[%clk 0:00:18.3]} 32... axb5 {[%clk 0:00:28.5]} 33. Ra6+
{[%clk 0:00:19.4]} 33... Kg5 {[%clk 0:00:23.9]} 34. Rb6 {[%clk 0:00:19.6]} 34...
Rb3 {[%clk 0:00:15.1]} 35. Rb7 {[%clk 0:00:20.6]} 35... Kxg4 {[%clk 0:00:13]}
36. Rxf7 {[%clk 0:00:20.5]} 36... g5 {[%clk 0:00:14.3]} 37. h3+ {[%clk 0:00:20]}
37... Nxh3+ {[%clk 0:00:10.6]} 38. Bxh3+ {[%clk 0:00:19.9]} 38... Rxh3 {[%clk
0:00:12.5]} 39. Rb7 {[%clk 0:00:19.3]} 39... Rd3 {[%clk 0:00:13.3]} 40. Rxb5
{[%clk 0:00:19.2]} 40... Rxd4 {[%clk 0:00:14.8]} 41. Kg2 {[%clk 0:00:19.6]}
41... h5 {[%clk 0:00:14.5]} 42. Rc5 {[%clk 0:00:20.6]} 42... h4 {[%clk
0:00:15.2]} 43. Rc8 {[%clk 0:00:19.7]} 43... Rf4 {[%clk 0:00:14.4]} 44. Rc5
{[%clk 0:00:19.3]} 44... h3+ {[%clk 0:00:14.7]} 45. Kg1 {[%clk 0:00:20.6]} 45...
Rd4 {[%clk 0:00:14.4]} 46. Kh2 {[%clk 0:00:18.9]} 46... Kh4 {[%clk 0:00:14.4]}
47. Rc8 {[%clk 0:00:19.3]} 47... Kg4 {[%clk 0:00:07.7]} 48. Rc5 {[%clk
0:00:18.6]} 48... Rf4 {[%clk 0:00:09.1]} 49. Kg1 {[%clk 0:00:19.3]} 49... Kh4
{[%clk 0:00:08.2]} 50. Rc8 {[%clk 0:00:19.1]} 50... Rg4+ {[%clk 0:00:09.5]} 51.
Kh1 {[%clk 0:00:19.1]} 51... Rd4 {[%clk 0:00:05.4]} 52. Kh2 {[%clk 0:00:18.3]}
52... g4 {[%clk 0:00:06.7]} 53. Rh8+ {[%clk 0:00:18]} 53... Kg5 {[%clk
0:00:08.2]} 54. Rg8+ {[%clk 0:00:19.9]} 54... Kf4 {[%clk 0:00:09.7]} 55. Rf8+
{[%clk 0:00:20.2]} 55... Ke4 {[%clk 0:00:11.1]} 56. Kg3 {[%clk 0:00:20.3]} 56...
Kd3 {[%clk 0:00:12.5]} 57. f4 {[%clk 0:00:18.2]} 57... c3 {[%clk 0:00:09.1]} 58.
f5 {[%clk 0:00:18.1]} 58... c2 {[%clk 0:00:10.3]} 59. Rc8 {[%clk 0:00:19]} 59...
Rc4 {[%clk 0:00:11.8]} 60. Rd8+ {[%clk 0:00:20.2]} 60... Kc3 {[%clk 0:00:12.2]}
61. f6 {[%clk 0:00:20.4]} 61... c1=Q {[%clk 0:00:13.3]} 62. f7 {[%clk
0:00:21.7]} 62... Qf4+ {[%clk 0:00:13.5]} 0-1

[Event "*** Titled Tuesday Blitz"]
[Site "Chess.com"]
[Date "2018.12.04"]
[Round "5"]
[White "GABUZYAN_CHESSMOOD"]
[Black "JonahWillow"]
[Result "1-0"]
[WhiteElo "2811"]
[BlackElo "2679"]
[TimeControl "180+2"]
[EndTime "14:08:45 PST"]
[Termination "GABUZYAN_CHESSMOOD won by resignation"]

1. Nf3 {[%clk 0:03:01.9]} 1... c5 {[%clk 0:03:00.7]} 2. g3 {[%clk 0:02:58.5]}
2... Nc6 {[%clk 0:03:01.3]} 3. Bg2 {[%clk 0:02:59.3]} 3... g6 {[%clk 0:03:02.4]}
4. O-O {[%clk 0:03:00.5]} 4... Bg7 {[%clk 0:03:01.7]} 5. c3 {[%clk 0:03:01.5]}
5... Nf6 {[%clk 0:03:00.3]} 6. d4 {[%clk 0:03:02.6]} 6... cxd4 {[%clk
0:03:02.2]} 7. cxd4 {[%clk 0:03:03.8]} 7... d5 {[%clk 0:03:03.5]} 8. Ne5 {[%clk
0:03:04.5]} 8... O-O {[%clk 0:03:02]} 9. Nc3 {[%clk 0:03:05.4]} 9... Be6 {[%clk
0:03:01.2]} 10. Bf4 {[%clk 0:02:32.3]} 10... Nh5 {[%clk 0:02:54.8]} 11. Rc1
{[%clk 0:02:32.5]} 11... Rc8 {[%clk 0:02:48.8]} 12. e3 {[%clk 0:02:26.1]} 12...
h6 {[%clk 0:02:24.5]} 13. Nd3 {[%clk 0:02:14.6]} 13... Nf6 {[%clk 0:02:16.5]}
14. Nc5 {[%clk 0:02:11.4]} 14... g5 {[%clk 0:02:11.6]} 15. Nxe6 {[%clk
0:02:09.8]} 15... fxe6 {[%clk 0:02:12.7]} 16. Be5 {[%clk 0:02:11.4]} 16... Nxe5
{[%clk 0:02:14.1]} 17. dxe5 {[%clk 0:02:11.4]} 17... Nd7 {[%clk 0:02:14.4]} 18.
Qg4 {[%clk 0:02:04.4]} 18... Rc6 {[%clk 0:02:00.5]} 19. f4 {[%clk 0:01:54.4]}
19... Qb6 {[%clk 0:01:55.8]} 20. Nxd5 {[%clk 0:01:49.3]} 20... exd5 {[%clk
0:01:51.4]} 21. Bxd5+ {[%clk 0:01:45.9]} 21... Kh8 {[%clk 0:01:27.7]} 22. Bxc6
{[%clk 0:01:44.8]} 22... Qxe3+ {[%clk 0:01:28.6]} 23. Kh1 {[%clk 0:01:41.5]}
23... bxc6 {[%clk 0:01:08.5]} 24. Qxd7 {[%clk 0:01:40.3]} 24... Qe4+ {[%clk
0:01:08.3]} 25. Kg1 {[%clk 0:01:39.3]} 25... Qe3+ {[%clk 0:01:07.9]} 26. Kg2
{[%clk 0:01:37.2]} 26... gxf4 {[%clk 0:01:05.8]} 27. gxf4 {[%clk 0:01:16]} 27...
Qe4+ {[%clk 0:00:51.1]} 28. Rf3 {[%clk 0:01:12]} 28... Rxf4 {[%clk 0:00:39.4]}
29. Qd3 {[%clk 0:01:08.2]} 29... Rg4+ {[%clk 0:00:24.4]} 30. Kh1 {[%clk
0:01:08.6]} 30... Bxe5 {[%clk 0:00:17.6]} 31. Qxe4 {[%clk 0:01:03.4]} 31... Rxe4
{[%clk 0:00:19.5]} 32. Rc2 {[%clk 0:01:03.7]} 32... c5 {[%clk 0:00:18.2]} 33.
Rxc5 {[%clk 0:01:02.7]} 33... Re2 {[%clk 0:00:17.6]} 34. Rh3 {[%clk 0:00:49.4]}
34... Kg7 {[%clk 0:00:18.1]} 35. Rc1 {[%clk 0:00:47.5]} 35... Bxb2 {[%clk
0:00:18.2]} 36. Rg1+ {[%clk 0:00:48]} 36... Kh7 {[%clk 0:00:19.4]} 37. Rhg3
{[%clk 0:00:46.9]} 37... Be5 {[%clk 0:00:20]} 38. R3g2 {[%clk 0:00:47.8]} 38...
Re4 {[%clk 0:00:21.4]} 39. Rd1 {[%clk 0:00:48.2]} 39... a5 {[%clk 0:00:19]} 40.
Rc2 {[%clk 0:00:49.3]} 40... Bd6 {[%clk 0:00:19.2]} 41. Rd3 {[%clk 0:00:50.2]}
41... a4 {[%clk 0:00:19.3]} 42. h3 {[%clk 0:00:51.6]} 42... a3 {[%clk
0:00:20.6]} 43. Kg2 {[%clk 0:00:52.8]} 43... Kg6 {[%clk 0:00:21.5]} 44. Rf3
{[%clk 0:00:53.9]} 44... h5 {[%clk 0:00:21.1]} 45. Rcf2 {[%clk 0:00:55.1]} 45...
h4 {[%clk 0:00:22]} 46. Rc2 {[%clk 0:00:56]} 46... Re1 {[%clk 0:00:19.5]} 47.
Kf2 {[%clk 0:00:57]} 47... Rh1 {[%clk 0:00:19.9]} 48. Ke2 {[%clk 0:00:57.8]}
48... Rh2+ {[%clk 0:00:21.1]} 49. Kd3 {[%clk 0:00:59]} 49... Rh1 {[%clk
0:00:23]} 50. Ke4 {[%clk 0:00:51.3]} 50... Bg3 {[%clk 0:00:24.1]} 51. Rxa3
{[%clk 0:00:52.4]} 51... Rxh3 {[%clk 0:00:25.4]} 52. Ra6+ {[%clk 0:00:52.6]}
52... Kf7 {[%clk 0:00:26.1]} 53. a4 {[%clk 0:00:53.4]} 53... Rh1 {[%clk
0:00:26.6]} 54. Kf3 {[%clk 0:00:54.8]} 54... Ra1 {[%clk 0:00:27.8]} 55. Kg2
{[%clk 0:00:54.9]} 55... Bd6 {[%clk 0:00:27.6]} 56. Ra8 {[%clk 0:00:55.8]} 56...
Ra3 {[%clk 0:00:28.6]} 57. Rc1 {[%clk 0:00:46.2]} 57... h3+ {[%clk 0:00:29.4]}
58. Kh1 {[%clk 0:00:47.7]} 58... h2 {[%clk 0:00:28.9]} 59. a5 {[%clk 0:00:47.1]}
59... Ke6 {[%clk 0:00:28]} 60. a6 {[%clk 0:00:48.2]} 60... Ke5 {[%clk
0:00:27.4]} 61. Re1+ {[%clk 0:00:48.9]} 61... Kf4 {[%clk 0:00:28.5]} 62. Kxh2
{[%clk 0:00:49.2]} 62... Kg4+ {[%clk 0:00:25.8]} 63. Kg2 {[%clk 0:00:49]} 63...
Ra2+ {[%clk 0:00:21.7]} 64. Kf1 {[%clk 0:00:49.6]} 64... e5 {[%clk 0:00:22.3]}
65. a7 {[%clk 0:00:50.2]} 65... Kf3 {[%clk 0:00:23.5]} 66. Rb1 {[%clk
0:00:43.7]} 66... e4 {[%clk 0:00:22.2]} 67. Rd8 {[%clk 0:00:23.9]} 67... Rh2
{[%clk 0:00:06.3]} 68. Rb3+ {[%clk 0:00:20.7]} 68... e3 {[%clk 0:00:05.1]} 69.
Rxe3+ {[%clk 0:00:21.8]} 69... Kxe3 {[%clk 0:00:06]} 70. a8=Q {[%clk 0:00:23.3]}
70... Rh1+ {[%clk 0:00:07.4]} 71. Qxh1 {[%clk 0:00:23.1]} 1-0

[Event "*** Titled Tuesday Blitz"]
[Site "Chess.com"]
[Date "2018.12.04"]
[Round "5"]
[White "c63_amg"]
[Black "NikolaGry"]
[Result "1/2-1/2"]
[WhiteElo "2622"]
[BlackElo "2638"]
[TimeControl "180+2"]
[EndTime "14:08:52 PST"]
[Termination "Game drawn - insufficient material"]

1. e4 {[%clk 0:03:01.9]} 1... d5 {[%clk 0:02:59.5]} 2. exd5 {[%clk 0:03:02.6]}
2... Nf6 {[%clk 0:03:00.1]} 3. d4 {[%clk 0:02:59.9]} 3... Nxd5 {[%clk
0:03:01.2]} 4. Nf3 {[%clk 0:03:00.9]} 4... g6 {[%clk 0:03:01.8]} 5. c4 {[%clk
0:03:01.9]} 5... Nb6 {[%clk 0:03:01.6]} 6. h3 {[%clk 0:03:03.5]} 6... Bg7 {[%clk
0:03:02.1]} 7. Nc3 {[%clk 0:03:05.2]} 7... O-O {[%clk 0:03:02.4]} 8. Be3 {[%clk
0:03:06.8]} 8... Nc6 {[%clk 0:03:03.1]} 9. Qd2 {[%clk 0:03:05.2]} 9... e5 {[%clk
0:03:03.4]} 10. d5 {[%clk 0:03:06.8]} 10... Ne7 {[%clk 0:03:04.3]} 11. g4 {[%clk
0:03:03.3]} 11... f5 {[%clk 0:03:05]} 12. O-O-O {[%clk 0:03:01.7]} 12... e4
{[%clk 0:03:00.6]} 13. Ng5 {[%clk 0:03:00.5]} 13... h6 {[%clk 0:02:54.3]} 14.
Ne6 {[%clk 0:02:58.3]} 14... Bxe6 {[%clk 0:02:49.4]} 15. dxe6 {[%clk 0:03:00.2]}
15... Qxd2+ {[%clk 0:02:25.3]} 16. Rxd2 {[%clk 0:02:52.5]} 16... Rad8 {[%clk
0:02:07.7]} 17. Rxd8 {[%clk 0:02:24.9]} 17... Rxd8 {[%clk 0:02:07.4]} 18. Rg1
{[%clk 0:01:46.9]} 18... Kf8 {[%clk 0:01:44.6]} 19. gxf5 {[%clk 0:01:27.4]}
19... gxf5 {[%clk 0:01:43.8]} 20. Bc5 {[%clk 0:01:14.1]} 20... Bd4 {[%clk
0:01:34]} 21. Bxd4 {[%clk 0:01:08.5]} 21... Rxd4 {[%clk 0:01:34]} 22. c5 {[%clk
0:00:55.2]} 22... Nbd5 {[%clk 0:01:09.5]} 23. Nb5 {[%clk 0:00:37.2]} 23... Ra4
{[%clk 0:01:04.2]} 24. Kb1 {[%clk 0:00:19.8]} 24... a6 {[%clk 0:01:03.3]} 25.
Nc3 {[%clk 0:00:10.8]} 25... Nxc3+ {[%clk 0:00:55.8]} 26. bxc3 {[%clk
0:00:12.7]} 26... Ra5 {[%clk 0:00:56.2]} 27. c6 {[%clk 0:00:14]} 27... Nxc6
{[%clk 0:00:36.1]} 28. Rg6 {[%clk 0:00:13.7]} 28... Rc5 {[%clk 0:00:29.7]} 29.
Kb2 {[%clk 0:00:13.3]} 29... Ke7 {[%clk 0:00:20.9]} 30. Rxh6 {[%clk 0:00:14.4]}
30... b5 {[%clk 0:00:19.5]} 31. h4 {[%clk 0:00:14.4]} 31... Nd8 {[%clk
0:00:18.9]} 32. h5 {[%clk 0:00:09.2]} 32... Nxe6 {[%clk 0:00:19.1]} 33. Rh7+
{[%clk 0:00:10.4]} 33... Kf6 {[%clk 0:00:19.8]} 34. h6 {[%clk 0:00:10.8]} 34...
Ng5 {[%clk 0:00:17.8]} 35. Rd7 {[%clk 0:00:09]} 35... Kg6 {[%clk 0:00:16.1]} 36.
c4 {[%clk 0:00:06.6]} 36... bxc4 {[%clk 0:00:15.7]} 37. Kc3 {[%clk 0:00:07.9]}
37... Kxh6 {[%clk 0:00:15.8]} 38. Bxc4 {[%clk 0:00:06.3]} 38... Nf3 {[%clk
0:00:16.7]} 39. Rd5 {[%clk 0:00:05.4]} 39... Rxd5 {[%clk 0:00:16.3]} 40. Bxd5
{[%clk 0:00:06.8]} 40... Kg5 {[%clk 0:00:17.3]} 41. Bb7 {[%clk 0:00:08.3]} 41...
a5 {[%clk 0:00:18.4]} 42. Kc4 {[%clk 0:00:09.8]} 42... Kf4 {[%clk 0:00:18.9]}
43. Kb5 {[%clk 0:00:11.1]} 43... e3 {[%clk 0:00:15.8]} 44. fxe3+ {[%clk
0:00:11.6]} 44... Kxe3 {[%clk 0:00:16.7]} 45. Kxa5 {[%clk 0:00:13.1]} 45... Nd2
{[%clk 0:00:15.9]} 46. Kb4 {[%clk 0:00:09.9]} 46... c5+ {[%clk 0:00:12.1]} 47.
Kxc5 {[%clk 0:00:07.5]} 47... Ne4+ {[%clk 0:00:13.1]} 48. Kb4 {[%clk 0:00:06.4]}
48... f4 {[%clk 0:00:13.4]} 49. a4 {[%clk 0:00:08.1]} 49... f3 {[%clk 0:00:14]}
50. a5 {[%clk 0:00:08.6]} 50... f2 {[%clk 0:00:14.4]} 51. Ba6 {[%clk 0:00:10]}
51... Ng3 {[%clk 0:00:14.6]} 52. Bf1 {[%clk 0:00:03.2]} 52... Nxf1 {[%clk
0:00:15.3]} 53. a6 {[%clk 0:00:05.1]} 53... Nd2 {[%clk 0:00:15.3]} 54. a7 {[%clk
0:00:07]} 54... f1=Q {[%clk 0:00:16.5]} 55. a8=Q {[%clk 0:00:08.9]} 55... Qb1+
{[%clk 0:00:17.4]} 56. Kc5 {[%clk 0:00:09.8]} 56... Qc2+ {[%clk 0:00:18.5]} 57.
Kd6 {[%clk 0:00:11]} 57... Ne4+ {[%clk 0:00:19.3]} 58. Ke7 {[%clk 0:00:10.9]}
58... Qc7+ {[%clk 0:00:20.1]} 59. Kf8 {[%clk 0:00:12.1]} 59... Qd6+ {[%clk
0:00:20.4]} 60. Kg7 {[%clk 0:00:12.1]} 60... Qf6+ {[%clk 0:00:21.1]} 61. Kg8
{[%clk 0:00:12.4]} 61... Qg6+ {[%clk 0:00:21.3]} 62. Kf8 {[%clk 0:00:13.4]}
62... Qf5+ {[%clk 0:00:21.8]} 63. Kg7 {[%clk 0:00:12.9]} 63... Qg5+ {[%clk
0:00:22.5]} 64. Kf7 {[%clk 0:00:10.6]} 64... Qf6+ {[%clk 0:00:23.3]} 65. Kg8
{[%clk 0:00:11.6]} 65... Kf4 {[%clk 0:00:23.4]} 66. Qb8+ {[%clk 0:00:11.9]}
66... Kg5 {[%clk 0:00:22.6]} 67. Qb5+ {[%clk 0:00:12]} 67... Kg6 {[%clk
0:00:21.4]} 68. Qe8+ {[%clk 0:00:11.5]} 68... Kh6 {[%clk 0:00:22.3]} 69. Qf8+
{[%clk 0:00:10.9]} 69... Qxf8+ {[%clk 0:00:22.7]} 70. Kxf8 {[%clk 0:00:11.5]}
1/2-1/2